bitfinex-derivatives/quotes_BNBF0:USTF0_20250424
["timestamp","ask_amount","ask_price","bid_price","bid_amount"]
[1745526730742,1.2759099,600.38,598.53,0.30659749]
[1745526732346,0.29043929,600.37,598.53,0.30659749]
[1745526734048,1.2759099,600.39,598.53,0.30659749]
[1745526735253,0.29043808,600.38,598.53,0.30659749]
[1745526736553,1.2759099,600.36,598.53,0.30659749]
[1745526737351,0.29044171,600.35,598.53,0.30659749]
[1745526738253,0.29044171,600.35,598.52,2.914]
[1745526738451,0.29044171,600.35,598.53,0.30659455]
[1745526739855,0.29044171,600.35,598.52,2.914]
[1745526740054,0.29044171,600.35,598.53,0.30658861]
[1745526741350,0.29044171,600.35,598.52,2.914]
[1745526741555,0.29044171,600.35,598.53,0.30657177]
[1745526743152,1.2759099,600.38,598.53,0.30657177]
[1745526743350,0.29041505,600.34,598.53,0.30657177]
[1745526745257,1.2759099,600.33,598.53,0.30657177]
[1745526745656,1.2759099,600.33,598.54,0.30657177]
[1745526745856,1.2759099,600.33,598.5,0.30657177]
[1745526746058,1.2759099,600.33,598.51,0.30657177]
[1745526746251,1.2759099,600.33,598.51,1.609]
[1745526746452,0.29042475,600.32,598.52,0.30657177]
[1745526746954,0.29042475,600.32,598.52,1.66157177]
[1745526747152,0.29042475,600.32,598.53,0.30657177]
[1745526748157,1.2759099,600.27,598.53,0.30657177]
[1745526749360,1.2759099,600.27,598.53,1.92657177]
[1745526749560,1.2759099,600.27,598.54,0.30657177]
[1745526750360,0.29041263,600.26,598.54,0.30657177]
[1745526750761,0.29041263,600.26,598.54,1.36998627]
[1745526750963,0.29041263,600.26,598.55,0.30657177]
[1745526752058,1.2759099,600.29,598.55,0.30657177]
[1745526752259,1.2759099,600.29,598.56,0.30652665]
[1745526752460,1.2759099,600.29,598.55,0.30652665]
[1745526752659,1.2759099,600.29,598.56,0.30652665]
[1745526752860,1.2759099,600.29,598.55,0.30652665]
[1745526753060,1.2759099,600.47,598.56,0.30652665]
[1745526753259,1.2759099,600.47,598.54,0.30652665]
[1745526753458,1.2759099,600.47,598.55,0.30652665]
[1745526753459,0.29040899,600.28,598.55,0.30652665]
[1745526753659,1.2759099,600.47,598.54,0.30652665]
[1745526753863,1.2759099,600.47,598.55,0.30652375]
[1745526754164,1.2759099,600.47,598.56,0.30652375]
[1745526754365,1.2759099,600.47,598.54,0.30652375]
[1745526754566,1.2759099,600.47,598.55,0.30652375]
[1745526754766,1.2759099,600.47,598.54,0.30652375]
[1745526754967,1.2759099,600.47,598.53,2.97382349]
[1745526755265,0.29038839,600.46,598.54,0.30652346]
[1745526755868,1.56629829,600.46,598.55,1.0634145]
[1745526756066,1.56629829,600.46,598.56,0.30652346]
[1745526758068,1.2759099,600.46,598.56,0.30652346]
[1745526758368,0.29038718,600.45,598.55,1.0634145]
[1745526758568,0.29038718,600.45,598.56,0.30652346]
[1745526760972,1.2759099,600.46,598.56,0.30652346]
[1745526761269,0.29038718,600.44,598.56,0.30652346]
[1745526761470,1.2759099,600.36,598.56,1.36993796]
[1745526761770,1.2759099,600.36,598.57,0.30652346]
[1745526764266,1.2759099,600.45,598.57,0.30652346]
[1745526765374,0.29037749,600.44,598.57,0.30652346]
[1745526765869,0.29037749,600.44,598.58,1.221]
[1745526766172,0.29037749,600.44,598.59,0.30652346]
[1745526767073,1.2759099,600.45,598.59,0.30652346]
[1745526767674,1.2759099,600.82,598.59,0.30652346]
[1745526768374,0.29033025,600.81,598.59,0.30652346]
[1745526770073,1.2759099,600.82,598.59,0.30652346]
[1745526770375,0.29033025,600.8,598.59,0.30652346]
[1745526773080,1.2759099,600.9,598.59,0.30652346]
[1745526773378,0.29032056,600.79,598.59,0.30652346]
[1745526773672,1.2759099,600.9,598.59,0.30652346]
[1745526773877,1.2759099,600.83,598.6,0.30652628]
[1745526774077,1.2759099,600.83,598.59,0.30652628]
[1745526774377,0.29032904,600.82,598.59,0.30652628]
[1745526775177,0.29032904,600.82,598.58,1.51132904]
[1745526775371,0.29032904,600.82,598.59,0.30654432]
[1745526776079,1.2759099,600.79,598.59,0.30654432]
[1745526778584,1.2759099,600.79,598.58,1.221]
[1745526778784,1.2759099,600.79,598.6,1.057]
[1745526779084,1.2759099,600.79,598.61,0.30654388]
[1745526779279,1.2759099,600.49,598.61,0.30654388]
[1745526780086,1.2759099,600.49,598.6,1.057]
[1745526780281,1.2759099,600.49,598.62,1.398]
[1745526780486,1.2759099,600.49,598.63,0.30654393]
[1745526781289,1.2759099,600.4,598.63,0.30654393]
[1745526782280,0.29040051,600.39,598.63,0.30654393]
[1745526782788,0.29040051,600.39,598.62,1.398]
[1745526782990,0.29040051,600.39,598.63,0.30654419]
[1745526785092,1.2759099,600.4,598.63,0.30654419]
[1745526785395,0.29040051,600.39,598.63,0.30654419]
[1745526787397,0.29040051,600.39,598.62,1.398]
[1745526787596,0.29040051,600.39,598.63,0.30653837]
[1745526791098,1.2759099,600.4,598.63,0.30653837]
[1745526791300,0.29040051,600.38,598.63,0.30653837]
[1745526793596,0.29040051,600.38,598.62,1.398]
[1745526793801,0.29040051,600.38,598.63,0.30654477]
[1745526794198,1.2759099,600.4,598.63,0.30654477]
[1745526795202,1.2759099,600.4,598.62,1.398]
[1745526795403,0.29040051,600.39,598.63,0.30654399]
[1745526796700,0.29040051,600.39,598.62,1.398]
[1745526796904,0.29040051,600.39,598.63,0.30654136]
[1745526797103,1.2759099,600.4,598.63,1.90154136]
[1745526797401,1.2759099,600.4,598.64,0.30654136]
[1745526798299,0.2903993,600.39,598.63,1.595]
[1745526798505,0.2903993,600.39,598.64,0.30654259]
[1745526799606,0.2903993,600.39,598.56,0.30654259]
[1745526799803,0.2903993,600.39,598.57,0.30654259]
[1745526800008,0.2903993,600.39,598.56,0.30654259]
[1745526800205,1.2759099,600.4,598.57,0.30654259]
[1745526800409,1.2759099,600.4,598.55,1.0634145]
[1745526800410,1.2759099,600.55,598.56,0.30654259]
[1745526800710,1.2759099,600.55,598.57,0.30654259]
[1745526800910,1.2759099,600.55,598.53,1.0634145]
[1745526800911,1.2759099,600.55,598.54,0.30654259]
[1745526801105,1.2759099,600.55,598.55,0.30654259]
[1745526801308,0.29039324,600.54,598.54,0.30654259]
[1745526801511,0.29039324,600.54,598.55,0.30654252]
[1745526802710,1.2759099,600.5,598.55,0.30654252]
[1745526803211,1.2759099,600.5,598.56,0.30654252]
[1745526803412,1.2759099,600.5,598.57,0.30654252]
[1745526803612,1.2759099,600.5,598.58,0.30654252]
[1745526803910,1.2759099,600.5,598.59,0.30654252]
[1745526804113,1.2759099,600.5,598.6,0.30654252]
[1745526804313,0.29040172,600.49,598.54,0.29040172]
[1745526804614,0.29040172,600.49,598.55,0.30654252]
[1745526805115,0.29040172,600.49,598.55,2.65354252]
[1745526805312,0.29040172,600.49,598.56,0.30654252]
[1745526805513,1.2759099,600.46,598.56,0.30654252]
[1745526805711,1.2759099,600.46,598.56,1.80754252]
[1745526805909,1.2759099,600.46,598.57,0.30654252]
[1745526807517,0.29040051,600.45,598.57,0.30654252]
[1745526809117,1.2759099,600.47,598.56,1.501]
[1745526809311,1.2759099,600.47,598.57,0.30654251]
[1745526809717,1.2759099,600.31,598.62,1.0634145]
[1745526809918,1.2759099,600.31,598.63,0.30654251]
[1745526810313,0.29041142,600.3,598.63,0.30654251]
[1745526812114,1.2759099,600.31,598.63,0.30654251]
[1745526812417,0.29041142,600.29,598.63,0.30654251]
[1745526812618,1.2759099,600.28,598.65,1.0634145]
[1745526812816,1.2759099,600.28,598.66,0.30654251]
[1745526813719,1.2759099,600.28,598.65,1.0634145]
[1745526813915,1.2759099,600.28,598.66,0.3065422]
[1745526814519,1.2759099,600.25,598.66,0.3065422]
[1745526814715,1.2759099,600.25,598.64,0.3065422]
[1745526814915,1.2759099,600.25,598.65,0.3065422]
[1745526815220,1.2759099,600.25,598.64,0.3065422]
[1745526815420,0.29041748,600.24,598.64,0.3065422]
[1745526817416,1.2759099,600.15,598.64,0.3065422]
[1745526817621,1.2759099,600.15,598.68,1.0634145]
[1745526817921,1.2759099,600.15,598.69,0.3065422]
[1745526819323,0.29042353,600.14,598.69,0.3065422]
[1745526820323,1.2759099,600.12,598.7,1.0634145]
[1745526820526,1.2759099,600.12,598.71,0.3065422]
[1745526822427,1.2759099,600.1,598.78,1.0634145]
[1745526825423,0.29041748,600.09,598.78,1.0634145]
[1745526826128,0.29041748,600.09,598.7,1.0634145]
[1745526826429,0.29041748,600.09,598.71,0.30654027]
[1745526826630,0.29041748,600.09,598.72,0.30654056]
[1745526826823,0.29041748,600.09,598.73,0.30654056]
[1745526827026,0.29041748,600.09,598.71,0.30654056]
[1745526829236,0.29041748,600.09,598.69,1.0634145]
[1745526830135,1.2759099,600.25,598.69,1.0634145]
[1745526830431,0.2904102,600.09,598.69,1.0634145]
[1745526830835,1.2759099,600.25,598.69,1.0634145]
[1745526831637,0.2904102,600.24,598.69,1.0634145]
[1745526831836,0.2904102,600.24,598.55,3.4104145]
[1745526832139,0.2904102,600.24,598.56,0.30654056]
[1745526833032,1.2759099,600.53,598.56,0.30654056]
[1745526833538,0.29039324,600.52,598.56,0.30654056]
[1745526835239,0.29039324,600.52,598.56,1.30054056]
[1745526835432,0.29039324,600.52,598.57,0.30654056]
[1745526835735,1.2759099,600.51,598.57,0.30654056]
[1745526836540,0.29039445,600.5,598.57,0.30654056]
[1745526838742,0.29039445,600.5,598.58,1.0634145]
[1745526838941,0.29039445,600.5,598.59,0.30654056]
[1745526839140,1.2759099,600.52,598.59,0.30654056]
[1745526839342,0.29039082,600.49,598.59,0.30654056]
[1745526840537,0.29039082,600.49,598.58,1.0634145]
[1745526840744,0.29039082,600.49,598.59,0.30654316]
[1745526841545,1.2759099,600.37,598.65,1.0634145]
[1745526841738,1.2759099,600.37,598.66,0.30654316]
[1745526842339,1.2759099,600.37,598.66,1.71254316]
[1745526842545,1.2759099,600.37,598.67,0.30654316]
[1745526843344,0.2903993,600.36,598.67,0.30654316]
[1745526844753,1.2759099,600.33,598.67,0.30654316]
[1745526846354,0.29040415,600.32,598.67,0.30654316]
[1745526846654,0.29040415,600.32,598.68,0.30654048]
[1745526846854,0.29040415,600.32,598.69,0.30654048]
[1745526847048,0.29040415,600.32,598.7,0.30654048]
[1745526847248,0.29040415,600.32,598.66,1.406]
[1745526847451,0.29040415,600.32,598.67,0.30654113]
[1745526848152,1.2759099,600.35,598.66,1.406]
[1745526848353,1.2759099,600.35,598.67,0.30654085]
[1745526849356,0.29039688,600.34,598.67,0.30654085]
[1745526849755,0.29039688,600.34,598.68,0.30653902]
[1745526850056,0.29039688,600.34,598.69,0.30653902]
[1745526850357,0.29039688,600.34,598.7,0.30653902]
[1745526850552,0.29039688,600.34,598.68,1.567]
[1745526850755,0.29039688,600.34,598.69,0.30654]
[1745526851159,0.29039688,600.34,598.68,1.567]
[1745526851358,0.29039688,600.34,598.69,0.30653945]
[1745526852759,0.29039688,600.34,598.68,1.567]
[1745526852960,0.29039688,600.34,598.69,0.30653942]
[1745526854059,1.2759099,600.35,598.69,0.30653942]
[1745526854253,1.2759099,600.35,598.68,1.567]
[1745526854458,0.29039445,600.33,598.69,0.30653912]
[1745526855762,0.29039445,600.33,598.68,1.567]
[1745526855963,0.29039445,600.33,598.69,0.30654261]
[1745526857161,1.2759099,600.35,598.69,0.30654261]
[1745526858365,0.29039445,600.34,598.69,0.30654261]
[1745526860066,1.2759099,600.35,598.69,0.30654261]
[1745526860361,1.2759099,600.35,598.68,1.567]
[1745526860564,0.29039445,600.34,598.69,0.30654]
[1745526861466,0.29039445,600.34,598.7,0.30654]
[1745526861765,0.29039445,600.34,598.71,0.30654]
[1745526862061,0.29039445,600.34,598.67,0.30654]
[1745526862265,0.29039445,600.34,598.68,0.30654]
[1745526862460,0.29039445,600.34,598.66,1.406]
[1745526863065,1.2759099,600.35,598.66,1.406]
[1745526863966,1.2759099,600.35,598.66,2.777]
[1745526864366,0.29040899,600.34,598.66,2.777]
[1745526866167,1.2759099,600.35,598.66,2.777]
[1745526866365,1.2759099,600.35,598.66,4.254]
[1745526866568,0.29040899,600.33,598.66,4.254]
[1745526869172,1.2759099,600.78,598.66,4.254]
[1745526869371,2.17078607,601.69,598.66,4.254]
[1745526869372,0.29039082,600.32,598.66,4.254]
[1745526869673,1.2759099,600.8,598.66,4.254]
[1745526870372,0.29038839,600.79,598.66,4.254]
[1745526872073,1.2759099,600.8,598.66,4.254]
[1745526872369,2.17078607,600.73,598.66,4.254]
[1745526872669,1.2759099,600.57,598.66,4.254]
[1745526874677,1.2759099,600.67,598.66,4.254]
[1745526876367,0.29040415,600.66,598.66,4.254]
[1745526878177,1.2759099,600.67,598.66,4.254]
[1745526879377,0.29040415,600.66,598.66,4.254]
[1745526879577,1.2759099,600.52,598.66,4.254]
[1745526881577,0.29042232,600.51,598.66,4.254]
[1745526881877,1.2759099,600.47,598.66,4.254]
[1745526883672,1.2759099,600.47,598.67,0.30657175]
[1745526884476,0.29039203,600.46,598.67,0.30657175]
[1745526884676,1.2759099,600.45,598.67,0.30657175]
[1745526885178,1.2759099,600.45,598.66,2.848]
[1745526885380,1.2759099,600.45,598.67,0.30654295]
[1745526887282,2.17078607,600.8,598.66,2.848]
[1745526887283,1.2759099,600.62,598.66,2.848]
[1745526887481,0.29038234,600.44,598.67,0.30653944]
[1745526887677,1.2759099,600.62,598.67,0.30653944]
[1745526888382,0.29036174,600.61,598.67,0.30653944]
[1745526889981,1.2759099,600.52,598.67,0.30653944]
[1745526890382,1.2759099,600.52,598.66,3.933]
[1745526890576,1.2759099,600.52,598.67,0.30653754]
[1745526891384,0.29037386,600.51,598.67,0.30653754]
[1745526891985,0.29037386,600.51,598.66,3.933]
[1745526892186,0.29037386,600.51,598.67,0.30653739]
[1745526893287,1.2759099,600.57,598.67,0.30653739]
[1745526893686,1.2759099,600.57,598.68,0.30653725]
[1745526893883,1.2759099,600.57,598.69,0.30653725]
[1745526894084,1.2759099,600.57,598.67,0.30653725]
[1745526894283,1.2759099,600.57,598.66,2.456]
[1745526894490,0.2903678,600.56,598.67,0.30653724]
[1745526896089,1.2759099,600.62,598.67,0.30653724]
[1745526896289,0.29036174,600.55,598.67,1.93753724]
[1745526896589,0.29036174,600.55,598.68,0.30653724]
[1745526899089,1.2759099,600.62,598.68,0.30653724]
[1745526899490,0.29036053,600.61,598.68,0.30653724]
[1745526900091,1.2759099,600.6,598.68,0.30653724]
[1745526901187,1.2759099,600.6,598.69,0.30654154]
[1745526901392,1.2759099,600.6,598.7,0.30654154]
[1745526901690,1.2759099,600.6,598.71,0.30654154]
[1745526901887,1.2759099,600.6,598.68,0.30654154]
[1745526902090,1.2759099,600.6,598.69,0.30654154]
[1745526902291,1.2759099,600.6,598.68,0.30654154]
[1745526902493,0.29036295,600.59,598.67,1.631]
[1745526902694,0.29036295,600.59,598.68,0.3065414]
[1745526903295,1.2759099,600.55,598.68,0.3065414]
[1745526904594,1.2759099,600.55,598.67,1.631]
[1745526907799,0.29036295,600.59,598.67,1.631]
[1745526908299,1.2759099,600.82,598.67,1.631]
[1745526908499,0.29036295,600.58,598.67,1.631]
[1745526908894,1.2759099,600.82,598.67,1.631]
[1745526909598,0.29036295,600.81,598.67,1.631]
[1745526910399,1.2759099,600.75,598.67,1.631]
[1745526911700,0.29037143,600.74,598.67,1.631]
[1745526913297,1.2759099,600.6,598.67,1.631]
[1745526914398,0.29038961,600.59,598.67,1.631]
[1745526915506,1.2759099,600.51,598.67,1.631]
[1745526915707,1.2759099,600.51,598.68,0.30658808]
[1745526916407,1.2759099,600.51,598.67,1.631]
[1745526916604,1.2759099,600.51,598.68,0.30658192]
[1745526917506,0.29040051,600.5,598.68,0.30658192]
[1745526917702,0.29040051,600.5,598.67,1.631]
[1745526920209,1.2759099,600.51,598.67,1.631]
[1745526921410,0.29037386,600.5,598.67,1.631]
[1745526924012,0.29037386,600.5,598.67,2.713]
[1745526926213,1.2759099,600.51,598.67,2.713]
[1745526927513,0.29035205,600.5,598.67,2.713]
[1745526928413,0.29035205,600.5,598.68,0.30648577]
[1745526928912,0.29035205,600.5,598.67,1.082]
[1745526929115,1.2759099,600.51,598.68,0.3064835]
[1745526929510,0.29035205,600.5,598.68,0.3064835]
[1745526930414,0.29035205,600.5,598.67,1.082]
[1745526930712,0.29035205,600.5,598.68,0.30648128]
[1745526932011,0.29035205,600.5,598.67,1.082]
[1745526932215,1.2759099,600.51,598.68,0.30648128]
[1745526932515,0.29035205,600.49,598.68,0.30648128]
[1745526932715,0.29035205,600.49,598.68,1.30148128]
[1745526932916,0.29035205,600.49,598.69,0.30648128]
[1745526935112,1.2759099,600.51,598.68,0.995]
[1745526935317,1.2759099,600.51,598.69,0.3064797]
[1745526935519,0.29035084,600.48,598.69,0.3064797]
[1745526936812,0.29035084,600.48,598.7,0.30647678]
[1745526937015,0.29035084,600.48,598.71,0.30647678]
[1745526937214,0.29035084,600.48,598.72,0.30647678]
[1745526937415,0.29035084,600.48,598.73,0.30647678]
[1745526937614,0.29035084,600.48,598.68,0.995]
[1745526937916,0.29035084,600.48,598.69,0.30647711]
[1745526938516,0.29035084,600.48,598.68,0.995]
[1745526938720,0.29035084,600.48,598.69,0.30648017]
[1745526940221,0.29035084,600.48,598.68,0.995]
[1745526940421,0.29035084,600.48,598.69,0.30647995]
[1745526941123,1.2759099,600.51,598.69,0.30647995]
[1745526941721,1.2759099,600.51,598.68,0.995]
[1745526941917,1.2759099,600.51,598.7,0.30647861]
[1745526942122,1.2759099,600.51,598.71,0.30647861]
[1745526942321,1.2759099,600.51,598.72,0.30647861]
[1745526942516,1.2759099,600.51,598.68,0.995]
[1745526942517,0.290346,600.5,598.69,0.30647861]
[1745526942821,0.290346,600.5,598.7,0.30647861]
[1745526943022,0.290346,600.5,598.69,0.30647861]
[1745526943223,0.290346,600.5,598.7,0.30647861]
[1745526943521,0.290346,600.5,598.71,0.30647861]
[1745526943822,0.290346,600.5,598.72,0.30647861]
[1745526944017,1.2759099,600.51,598.72,0.30647861]
[1745526944418,0.29034236,600.49,598.72,0.30647861]
[1745526944816,0.29034236,600.49,598.71,0.959]
[1745526945020,0.29034236,600.49,598.72,0.30647919]
[1745526946320,0.29034236,600.49,598.71,0.959]
[1745526946520,0.29034236,600.49,598.72,0.30647666]
[1745526947222,1.2759099,600.95,598.73,1.28]
[1745526947424,1.2759099,600.95,598.74,0.30647666]
[1745526947622,0.29028908,600.48,598.74,0.30647666]
[1745526947823,1.2759099,600.95,598.74,0.30647666]
[1745526948026,1.2759099,600.65,598.74,0.30647666]
[1745526948529,0.29032298,600.64,598.74,0.30647666]
[1745526949426,0.29032298,600.64,598.73,1.28]
[1745526949731,0.29032298,600.64,598.74,0.30647458]
[1745526950032,1.2759099,600.63,598.74,0.30647458]
[1745526950528,0.29032541,600.62,598.74,0.30647458]
[1745526953135,1.2759099,600.63,598.74,0.30647458]
[1745526953530,0.29032541,600.61,598.74,0.30647458]
[1745526953733,1.2759099,600.5,598.74,0.30647458]
[1745526954129,1.2759099,600.5,598.73,1.28]
[1745526954432,1.2759099,600.5,598.74,0.30648199]
[1745526956635,0.29034115,600.49,598.74,0.30648199]
[1745526957140,1.2759099,600.24,598.79,1.0634145]
[1745526957540,1.2759099,600.24,598.8,0.30647983]
[1745526959543,0.29036538,600.23,598.8,0.30647983]
[1745526960044,0.29036538,600.23,598.8,1.76247983]
[1745526960243,0.29036538,600.23,598.81,0.30647983]
[1745526960542,0.29036538,600.23,598.82,0.3064822]
[1745526960738,0.29036538,600.23,598.81,0.3064822]
[1745526960937,1.56627528,600.23,598.81,0.3064822]
[1745526961540,1.56627528,600.23,598.82,0.30647911]
[1745526961739,1.56627528,600.23,598.83,0.30647911]
[1745526962044,1.56627528,600.23,598.84,0.30647911]
[1745526962343,1.2759099,600.23,598.85,0.30647911]
[1745526962646,1.56627528,600.23,598.86,0.30647911]
[1745526962839,1.56627528,600.23,598.87,0.30647911]
[1745526963145,1.56627528,600.23,598.88,0.30647911]
[1745526963443,1.56627528,600.23,598.89,0.30647911]
[1745526963644,1.56627528,600.23,598.9,0.30647911]
[1745526963844,0.29036538,600.23,598.84,1.0634145]
[1745526964046,0.29036538,600.23,598.85,0.30647911]
[1745526964946,0.29036538,600.23,598.84,1.0634145]
[1745526965144,1.2759099,600.34,598.85,0.30647931]
[1745526965548,0.29034721,600.33,598.85,0.30647931]
[1745526965946,1.2759099,600.3,598.86,1.0634145]
[1745526966142,1.2759099,600.3,598.87,0.30647931]
[1745526967043,1.2759099,600.3,598.86,1.0634145]
[1745526968449,0.2903351,600.29,598.86,1.0634145]
[1745526969251,0.2903351,600.29,598.8,1.456]
[1745526969651,0.2903351,600.29,598.81,0.30644746]
[1745526971053,0.2903351,600.29,598.8,1.456]
[1745526971252,1.2759099,600.77,598.81,0.30644459]
[1745526971953,1.2759099,600.81,598.72,0.30644459]
[1745526972153,1.2759099,600.81,598.73,0.30644459]
[1745526972452,0.2902915,600.8,598.74,0.30644459]
[1745526972650,0.2902915,600.8,598.71,0.29029271]
[1745526972853,0.2902915,600.8,598.72,0.30643468]
[1745526974154,0.2902915,600.8,598.71,0.29029271]
[1745526974448,0.2902915,600.8,598.72,0.30644003]
[1745526975755,0.2902915,600.8,598.71,0.29029271]
[1745526975949,0.2902915,600.8,598.72,0.30643602]
[1745526977256,1.2759099,600.83,598.68,1.0634145]
[1745526977551,1.2759099,600.83,598.69,0.30642439]
[1745526978457,0.29029029,600.82,598.7,0.29029029]
[1745526978656,0.29029029,600.82,598.71,0.30642439]
[1745526979452,1.2759099,600.58,598.79,1.0634145]
[1745526979658,1.2759099,600.58,598.8,0.30642439]
[1745526981558,0.29030482,600.57,598.8,0.30642439]
[1745526983160,1.2759099,600.59,598.8,0.30642439]
[1745526983559,0.29029634,600.58,598.8,0.30642439]
[1745526983755,0.29029634,600.58,598.79,1.0634145]
[1745526983959,0.29029634,600.58,598.8,0.30641849]
[1745526985561,1.2759099,600.59,598.8,0.30641849]
[1745526985958,1.2759099,600.69,598.8,0.30641849]
[1745526986157,1.2759099,600.69,598.75,0.30641849]
[1745526986356,1.2759099,600.69,598.76,0.30641849]
[1745526986555,1.2759099,600.69,598.75,0.30641849]
[1745526986754,1.2759099,600.69,598.76,0.30641849]
[1745526986954,1.2759099,600.69,598.74,1.0634145]
[1745526987260,1.2759099,600.69,598.75,0.30641446]
[1745526990057,1.2759099,600.63,598.79,1.0634145]
[1745526990355,1.2759099,600.63,598.8,0.30641446]
[1745526990561,0.29028424,600.62,598.8,0.30641446]
[1745526991563,0.29028424,600.62,598.79,1.0634145]
[1745526991764,0.29028424,600.62,598.8,0.30641453]
[1745526992164,1.2759099,600.63,598.8,0.30641453]
[1745526992365,1.2759099,600.61,598.8,0.30641453]
[1745526992564,1.56619414,600.61,598.81,0.30641453]
[1745526992764,1.56619414,600.61,598.82,0.30641453]
[1745526992965,1.56619414,600.61,598.78,0.30641453]
[1745526993161,1.56619414,600.61,598.79,0.30641619]
[1745526993460,1.56619414,600.61,598.8,0.30641619]
[1745526993765,1.56619414,600.61,598.81,0.30641619]
[1745526993962,1.56619414,600.61,598.82,0.30641619]
[1745526994165,1.56619414,600.61,598.79,0.30641619]
[1745526994361,1.56619414,600.61,598.8,0.30641619]
[1745526994565,1.56619414,600.61,598.79,0.30641619]
[1745526994767,1.2759099,600.44,598.84,1.0634145]
[1745526994961,1.2759099,600.44,598.85,0.30641619]
[1745526996066,1.2759099,600.44,598.84,1.0634145]
[1745526996767,1.2759099,600.44,598.85,0.30642281]
[1745526997066,1.2759099,600.4,598.86,1.0634145]
[1745526997365,1.2759099,600.4,598.87,0.30642281]
[1745526997766,1.2759099,600.4,598.86,1.0634145]
[1745526997966,1.2759099,600.4,598.87,0.30642252]
[1745527000270,0.29028424,600.61,598.79,0.30642252]
[1745527000569,0.29028424,600.61,598.8,0.30642252]
[1745527000770,0.29028424,600.61,598.81,0.30642252]
[1745527001070,0.29028424,600.61,598.78,0.29028908]
[1745527001263,0.29028424,600.61,598.79,0.30642552]
[1745527001666,0.29028424,600.61,598.78,0.29028908]
[1745527002170,0.29028424,600.61,598.79,0.30642231]
[1745527002372,0.29028424,600.61,598.79,1.36983681]
[1745527002573,0.29028424,600.61,598.8,0.30642231]
[1745527002771,0.29028424,600.61,598.79,1.0634145]
[1745527002968,0.29028424,600.61,598.8,0.30641914]
[1745527004173,1.2759099,600.68,598.8,0.30641914]
[1745527004571,0.29027818,600.6,598.8,0.30641914]
[1745527004872,1.2759099,600.68,598.8,0.30641914]
[1745527005574,0.29027818,600.67,598.8,0.30641914]
[1745527006969,1.56618808,600.67,598.82,1.0634145]
[1745527007176,1.2759099,600.67,598.83,0.30641914]
[1745527007571,0.29027576,600.66,598.83,0.30641914]
[1745527007775,0.29027576,600.66,598.84,1.481]
[1745527008073,0.29027576,600.66,598.85,0.30641914]
[1745527008872,0.29027576,600.66,598.84,1.481]
[1745527009077,0.29027576,600.66,598.85,0.30642065]
[1745527009779,1.2759099,600.63,598.85,0.30642065]
[1745527010577,1.2759099,600.63,598.84,2.5444145]
[1745527010578,0.29029998,600.62,598.84,2.5444145]
[1745527011976,0.29029998,600.62,598.84,1.481]
[1745527013283,1.2759099,600.67,598.84,1.481]
[1745527014485,0.29030482,600.66,598.84,1.481]
[1745527016684,0.29030482,600.66,598.85,0.30647238]
[1745527019287,1.2759099,600.68,598.85,0.30647238]
[1745527019487,1.2759099,600.32,598.85,0.30647238]
[1745527022388,1.2759099,600.3,598.85,0.30647238]
[1745527023590,0.29034963,600.29,598.85,0.30647238]
[1745527023787,0.29034963,600.29,598.84,1.481]
[1745527023993,0.29034963,600.29,598.85,0.30647301]
[1745527025190,1.2759099,600.3,598.85,0.30647301]
[1745527025596,0.29035447,600.28,598.85,0.30647301]
[1745527028196,1.2759099,600.33,598.85,0.30647301]
[1745527028498,0.29035084,600.27,598.85,0.30647301]
[1745527029998,0.29035084,600.27,598.76,1.0634145]
[1745527030197,0.29035084,600.27,598.77,0.30647772]
[1745527031203,1.2759099,600.31,598.77,0.30647772]
[1745527031698,0.29036295,600.26,598.77,0.30647772]
[1745527032493,0.29036295,600.26,598.76,0.30647772]
[1745527032694,0.29036295,600.26,598.77,0.30647772]
[1745527032994,0.29036295,600.26,598.78,0.30647772]
[1745527033194,0.29036295,600.26,598.79,0.30647353]
[1745527033393,0.29036295,600.26,598.8,0.30647353]
[1745527033597,0.29036295,600.26,598.76,0.30647353]
[1745527033798,0.29036295,600.26,598.77,0.30647353]
[1745527033996,0.29036295,600.26,598.78,0.30647353]
[1745527034200,1.2759099,600.39,598.76,0.30647353]
[1745527034400,1.2759099,600.39,598.78,1.436]
[1745527034600,0.29035447,600.38,598.78,1.436]
[1745527034801,0.29035447,600.38,598.79,0.30647387]
[1745527035303,0.29035447,600.38,598.78,1.436]
[1745527035502,0.29035447,600.38,598.78,2.363]
[1745527035702,0.29035447,600.38,598.79,0.30645621]
[1745527037407,1.2759099,600.4,598.79,0.30645621]
[1745527037700,2.17078607,600.93,598.79,0.30645621]
[1745527037701,1.2759099,600.99,598.79,0.30645621]
[1745527038402,0.29024187,600.98,598.79,0.30645621]
[1745527040205,1.2759099,600.99,598.79,0.30645621]
[1745527040405,0.29024187,600.97,598.79,0.30645621]
[1745527042409,0.29024187,600.97,598.78,2.363]
[1745527042708,0.29024187,600.97,598.79,0.30639539]
[1745527043110,1.2759099,601.05,598.79,0.30639539]